Workbook

Sheet 征订数 反馈明细表
A1: 客户编码 | B1: 客户名称 | C1: 渠道 | D1: 备注 | E1: 省份 | F1: 主管业务 | G1: BEAMS AT HOME 4 理想之家 | H1: 关键句是死亡 | I1: 受限福尔摩斯机 | J1: 苏州园林谋杀简史 | K1: 烟台传：半岛的此在与彼在 | L1: 秦始皇传
A2: BJ0054 | B2: 江苏圆周电子商务有限公司（京东商城 北京库） | C2: 网站 | D2: 全品 | E2: 北京 | F2: 丁玥
A3: BJ0005 | B3: 北京当当网信息技术有限公司（当当网北京库 | C3: 网站 | D3: 全品 | E3: 北京 | F3: 张珊珊
A5: SH001 | B5: 上海新华传媒连锁有限公司 | C5: 主渠道 | D5: 全品 | E5: 上海 | F5: 侯爽
A6: SH004 | B6: 上海天地图书有限公司 | C6: 二渠道 | D6: 全品 | E6: 上海 | F6: 侯爽
A7: SH033 | B7: 上海镜湖文化传播有限公司 | C7: 二渠道 | D7: 文学 | E7: 上海 | F7: 侯爽
A8: SH0050 | B8: 上海悦悦图书有限公司 | C8: 二渠道 | D8: 社科 | E8: 上海 | F8: 侯爽
A9: SH024 | B9: 上海图书公司 | C9: 二渠道 | D9: 社科 | E9: 上海 | F9: 侯爽
A10: SH035 | B10: 上海上图书店 | C10: 二渠道 | D10: 全品 | E10: 上海 | F10: 侯爽
A11: SH002 | B11: 上海季风图书有限公司 | C11: 二渠道 | D11: 全品 | E11: 上海 | F11: 侯爽
A12: SH026 | B12: 上海钟书实业有限公司 | C12: 二渠道 | D12: 全品 | E12: 上海 | F12: 侯爽
A13: SH007 | B13: 上海建投书店 | C13: 二渠道 | D13: 全品 | E13: 上海 | F13: 侯爽
A14: SH019 | B14: 上海联诚图书有限公司 | C14: 二渠道 | D14: 全品 | E14: 上海 | F14: 侯爽
A15: gd0001 | B15: 广东新华发行集团股份有限公司 | C15: 主道批发 | D15: 全品 | E15: 广东 | F15: 侯爽
A16: gd0023 | B16: 广州新华出版发行集团股份有限公司物流配送分公司 | C16: 主道零售 | D16: 全品 | E16: 广东 | F16: 侯爽
A17: gdzh0003 | B17: 广东省珠海市新华书店 | C17: 主道零售 | D17: 全品 | E17: 广东 | F17: 侯爽
A18: gdsz0001 | B18: 深圳市发行（集团）公司采购中心 | C18: 主道零售 | D18: 全品 | E18: 广东 | F18: 侯爽
A19: gdfs0001 | B19: 佛山市新华书店 | C19: 主道零售 | D19: 全品 | E19: 广东 | F19: 侯爽
A20: gdzj0001 | B20: 湛江市新华书店有限公司 | C20: 主道零售 | D20: 全品 | E20: 广东 | F20: 侯爽
A21: gd0024 | B21: 广州新经典发行有限公司 | C21: 二道批发 | D21: 全品 | E21: 广东 | F21: 侯爽
A22: gd0012 | B22: 广东诚一文化传播有限公司 | C22: 二道批发 | D22: 重点品 | E22: 广东 | F22: 侯爽
A23: gd0020 | B23: 广东方所商贸有限公司 | C23: 二道零售 | D23: 全品 | E23: 广东 | F23: 侯爽
A24: gd0003 | B24: 广东学而优图书文化发展有限公司 | C24: 二道零售 | D24: 全品 | E24: 广东 | F24: 侯爽
A25: gdsz0003 | B25: 深圳市求实图书有限公司 | C25: 二道批发 | D25: 全品 | E25: 广东 | F25: 侯爽
A26: gdzh0001 | B26: 珠海市文华书城有限公司 | C26: 二道零售 | D26: 全品 | E26: 广东 | F26: 侯爽
A27: gdsz0004 | B27: 深圳市友谊书城有限公司 | C27: 二道零售 | D27: 全品 | E27: 广东 | F27: 侯爽
A28: gdfs0003 | B28: 佛山市东方书城图书有限公司 | C28: 二道零售 | D28: 全品 | E28: 广东 | F28: 侯爽
A29: gx0001 | B29: 广西新华文盛图书有限公司 | C29: 主道批发 | D29: 全品 | E29: 广西 | F29: 侯爽
A30: gx0003 | B30: 桂林市新华书店有限公司 | C30: 主道零售 | D30: 全品 | E30: 广西 | F30: 侯爽
A31: gx0004 | B31: 南宁市新华书店有限责任公司 | C31: 主道零售 | D31: 全品 | E31: 广西 | F31: 侯爽
A32: gx0006 | B32: 刀锋书店 | C32: 二道零售 | D32: 全品 | E32: 广西 | F32: 侯爽
A33: FJ010 | B33: 福建新华图书发行有限公司 | C33: 主渠道 | D33: 全品 | E33: 福建 | F33: 侯爽
A34: BJ0101 | B34: 福州葫芦弟弟电子商务有限公司 | C34: 网站 | D34: 全品 | E34: 福建 | F34: 侯爽
A35: FJ004 | B35: 厦门对外图书交流中心 | C35: 二渠道 | D35: 全品 | E35: 福建 | F35: 侯爽
A36: FJ015 | B36: 福建良朴 | C36: 二渠道 | D36: 重点品 | E36: 福建 | F36: 侯爽
A37: FJ003 | B37: 福建省越洋图书文化城有限公司 | C37: 二渠道 | D37: 重点品 | E37: 福建 | F37: 侯爽
A39: ZJ004 | B39: 浙江省新华书店集团有限公司 | C39: 主渠道 | D39: 全品 | E39: 浙江 | F39: 马威
A40: ZJ019 | B40: 博库网络有限公司 | C40: 主渠道 | D40: 全品 | E40: 浙江 | F40: 马威
A41: ZJ001 | B41: 杭州金典图书有限公司 | C41: 二渠道 | D41: 全品 | E41: 浙江 | F41: 马威
A42: ZJ002 | B42: 杭州新视角图书有限公司 | C42: 二渠道 | D42: 全品 | E42: 浙江 | F42: 马威
A43: ZJ003 | B43: 杭州翰香图书有限公司（晓风书屋） | C43: 二渠道 | D43: 社科 | E43: 浙江 | F43: 马威
A45: BJ0001 | B45: 新华书店首都发行所（物流中心） | C45: 主渠道 | D45: 全品 | E45: 北京 | F45: 付雷
A46: BJ0035 | B46: 北京人天书店有限公司 | C46: 馆配 | D46: 全品 | E46: 北京 | F46: 付雷
A47: BJ0014 | B47: 北京一恒盛辉图书有限公司 | C47: 二渠道 | D47: 全品 | E47: 北京 | F47: 付雷
A48: BJ0026 | B48: 北京大地书苑图书发行有限公司 | C48: 二渠道 | D48: 全品 | E48: 北京 | F48: 付雷
A49: BJ00108 | B49: 北京锦瑟闻香图书有限公司 | C49: 二道批发 | D49: 重点品 | E49: 北京 | F49: 付雷
A50: BJ00107 | B50: 互优网（北京）国际文化有限公司 | C50: 二渠道 | D50: 重点品 | E50: 北京 | F50: 付雷
A51: BJ0097 | B51: 中盘图书发行（北京）有限公司 | C51: 二渠道 | D51: 重点品 | E51: 北京 | F51: 付雷
A52: BJ0045 | B52: 中信联合发行有限责任公司（首都机场店） | C52: 二渠道 | D52: 重点品 | E52: 北京 | F52: 付雷
A53: BJ0071 | B53: 北京市蔚蓝时代商业管理有限公司 | C53: 二渠道 | D53: 重点品 | E53: 北京 | F53: 付雷
A54: BJ0008 | B54: 北京涵芬楼书店有限公司 | C54: 二渠道 | D54: 全品 | E54: 北京 | F54: 付雷
A55: BJ0009 | B55: 北京三联韬奋图书中心 | C55: 二渠道 | D55: 重点品 | E55: 北京 | F55: 付雷
A56: BJ0053 | B56: 北京库布里克书店有限公司 | C56: 二渠道 | D56: 重点品 | E56: 北京 | F56: 付雷
A57: BJ0010 | B57: 北京百万庄图书大厦有限公司 | C57: 二渠道 | D57: 全品 | E57: 北京 | F57: 付雷
A58: BJ00103 | B58: 北京字里行间文化发展有限公司 | C58: 二渠道 | D58: 重点品 | E58: 北京 | F58: 付雷
A59: BJ0036 | B59: 北京万圣书园图书有限责任公司 | C59: 二渠道 | D59: 全品 | E59: 北京 | F59: 付雷
A60: BJ0048 | B60: 单向街 | C60: 二渠道 | D60: 重点品 | E60: 北京 | F60: 付雷
A61: HB004 | B61: 河北省新华书店有限责任公司图书批销分公司 | C61: 主道批发 | D61: 全品 | E61: 河北 | F61: 付雷
A62: HB001 | B62: 石家庄市丛盛图书贸易有限责任公司 | C62: 二渠道 | D62: 全品 | E62: 河北 | F62: 付雷
A63: HB002 | B63: 石家庄秋林书城有限公司 | C63: 二渠道 | D63: 全品 | E63: 河北 | F63: 付雷
A64: HB013 | B64: 大厂回族自治县伊乡书局有限公司 | C64: 二渠道 | D64: 全品 | E64: 河北 | F64: 付雷
A65: HB014 | B65: 河北新经典出版物发行有限公司 | C65: 二渠道 | D65: 文学 | E65: 河北 | F65: 付雷
A66: HB015 | B66: 保定新世纪图书大厦有限公司 | C66: 二渠道 | D66: 全品 | E66: 河北 | F66: 付雷
A67: HB016 | B67: 北京百尺楼商贸有限公司 | C67: 二渠道 | D67: 全品 | E67: 河北 | F67: 付雷
A68: H00003 | B68: 山西尔雅书店有限公司 | C68: 二渠道 | D68: 全品 | E68: 山西 | F68: 付雷
A69: SX006 | B69: 山西新华现代出版物连锁有限责任公司 | C69: 主道批发 | D69: 全品 | E69: 山西 | F69: 付雷
A70: tj0004 | B70: 天津图书大厦 | C70: 主渠道 | D70: 全品 | E70: 天津 | F70: 付雷
A71: tj0010 | B71: 天津市超越世纪图书商贸有限公司 | C71: 二渠道 | D71: 社科 | E71: 天津 | F71: 付雷
A72: B00002 | B72: 吉林省新华书店集团长春市有限责任公司 | C72: 主渠道 | D72: 全品 | E72: 吉林 | F72: 付雷
A73: B00001 | B73: 吉林省新华书店图书批销中心 | C73: 主渠道 | D73: 全品 | E73: 吉林 | F73: 付雷
A74: B00005 | B74: 长春联合图书城有限公司 | C74: 二渠道 | D74: 重点品 | E74: 吉林 | F74: 付雷
A75: B00011 | B75: 长春市学人文化传播有限责任公司 | C75: 二渠道 | D75: 重点品 | E75: 吉林 | F75: 付雷
A76: B00015 | B76: 吉林出版集团网络图书 | C76: 二道批发 | D76: 全品 | E76: 吉林 | F76: 付雷
A77: C00010 | B77: 鞍山市新华书店 | C77: 主渠道 | D77: 全品 | E77: 辽宁 | F77: 付雷
A78: C00003 | B78: 沈阳市新华书店 | C78: 主渠道 | D78: 全品 | E78: 辽宁 | F78: 付雷
A79: C00004 | B79: 大连市新华书店 | C79: 主渠道 | D79: 全品 | E79: 辽宁 | F79: 付雷
A80: C00001 | B80: 辽宁北方出版物配送有限公司 | C80: 主渠道 | D80: 全品 | E80: 辽宁 | F80: 付雷
A81: C00006 | B81: 沙河口区八斗书局 | C81: 二渠道 | D81: 重点品 | E81: 辽宁 | F81: 付雷
A82: A00003 | B82: 大庆市新华书店萨尔图分店 | C82: 主渠道 | D82: 重点品 | E82: 黑龙江 | F82: 付雷
A83: A00005 | B83: 哈尔滨市学府书店 | C83: 二渠道 | D83: 重点品 | E83: 黑龙江 | F83: 付雷
A84: A0007 | B84: 大庆油田三合科技书店 | C84: 二渠道 | D84: 重点品 | E84: 黑龙江 | F84: 付雷
A85: A00009 | B85: 哈尔滨中央书店 | C85: 二渠道 | D85: 重点品 | E85: 黑龙江 | F85: 付雷
A86: I00001 | B86: 内蒙古新华书店图书大厦有限责任公司 | C86: 主渠道 | D86: 全品 | E86: 内蒙古 | F86: 付雷
A87: AX005 | B87: 西安市新华书店采购中心 | C87: 主渠道 | D87: 全品 | E87: 陕西 | F87: 付雷
A88: AX0005 | B88: 万邦图书城 | C88: 二渠道 | D88: 全品 | E88: 陕西 | F88: 付雷
A89: AX004 | B89: 陕西嘉汇汉唐图书发行有限责任公司 | C89: 二渠道 | D89: 全品 | E89: 陕西 | F89: 付雷
A90: GS001 | B90: 甘肃省新华书店图书批销中心 | C90: 主渠道 | D90: 全品 | E90: 甘肃 | F90: 付雷
A91: GS002 | B91: 甘肃纸中城邦书业有限公司 | C91: 二渠道 | D91: 全品 | E91: 甘肃 | F91: 付雷
A92: GS006 | B92: 广场书城事业开发部 | C92: 二渠道 | D92: 全品 | E92: 甘肃 | F92: 付雷
A93: GS008 | B93: 兰州书立方文化传播有限公司 | C93: 二渠道 | D93: 全品 | E93: 甘肃 | F93: 付雷
A94: QH002 | B94: 西宁三田书城有限责任公司 | C94: 二渠道 | D94: 全品 | E94: 甘肃 | F94: 付雷
A95: nx003 | B95: 银川市新华书店 | C95: 主渠道 | D95: 全品 | E95: 宁夏 | F95: 付雷
A96: NX001 | B96: 宁夏新华书店图书音像批销中心 | C96: 主渠道 | D96: 全品 | E96: 宁夏 | F96: 付雷
A97: QH001 | B97: 青海省新华发行集团图书批销中心 | C97: 主渠道 | D97: 全品 | E97: 青海 | F97: 付雷
A98: XJ003 | B98: 新疆乌市文史书店有限责任公司 | C98: 二渠道 | D98: 全品 | E98: 新疆 | F98: 付雷
A99: XJ001 | B99: 新疆乌鲁木齐飞行图书有限公司 | C99: 二渠道 | D99: 全品 | E99: 新疆 | F99: 付雷
A100: XJ004 | B100: 新疆维吾尔自治区新华书店图书批销中心 | C100: 主渠道 | D100: 全品 | E100: 新疆 | F100: 付雷
A101: XJ002 | B101: 乌鲁木齐市新华书店物流配送中心 | C101: 主渠道 | D101: 全品 | E101: 新疆 | F101: 付雷
A103: cq0001 | B103: 重庆新华传媒有限公司采购分公司 | C103: 主渠道 | D103: 全品 | E103: 重庆 | F103: 王秀
A104: cq0004 | B104: 重庆聚知书店 | C104: 二渠道 | D104: 文学 | E104: 重庆 | F104: 王秀
A105: cq0015 | B105: 重庆购书中心有限公司 | C105: 二渠道 | D105: 全品 | E105: 重庆 | F105: 王秀
A106: cq0007 | B106: 贵州西西弗文化传播有限公司（重庆分店） | C106: 二渠道 | D106: 全品 | E106: 重庆 | F106: 王秀
A107: cq0002 | B107: 重庆精典书店 | C107: 二渠道 | D107: 全品 | E107: 重庆 | F107: 王秀
A108: cq0017 | B108: 重庆新经典发行有限公司 | C108: 二渠道 | D108: 重点品 | E108: 重庆 | F108: 王秀
A109: yn0001 | B109: 云南新华书店图书有限公司 | C109: 主渠道 | D109: 全品 | E109: 云南 | F109: 王秀
A110: yn0003 | B110: 云南新经爱出版物发行有限公司 | C110: 二渠道 | D110: 重点品 | E110: 云南 | F110: 王秀
A111: gz0012 | B111: 贵州省新华书店图书音像有限公司 | C111: 主渠道 | D111: 全品 | E111: 贵州 | F111: 王秀
A112: gz0002 | B112: 贵州西西弗文化传播有限公司 | C112: 二渠道 | D112: 全品 | E112: 贵州 | F112: 王秀
A113: sc0001 | B113: 新华文轩出版传媒股份有限公司 | C113: 主渠道 | D113: 全品 | E113: 四川 | F113: 王秀
A114: sc0017 | B114: 成都天宇图书有限责任公司 | C114: 二渠道 | D114: 全品 | E114: 四川 | F114: 王秀
A115: sc0006 | B115: 四川星洋文化有限公司 | C115: 二渠道 | D115: 重点品 | E115: 四川 | F115: 王秀
A116: sc0012 | B116: 中盘图书发行成都有限公司 | C116: 二渠道 | D116: 全品 | E116: 四川 | F116: 王秀
A117: sc0018 | B117: 四川言几又文化传播有限公司 | C117: 二渠道 | D117: 全品 | E117: 四川 | F117: 王秀
A119: JS005 | B119: 江苏省新华书店发行集团物流配送分公司 | C119: 主渠道 | D119: 全品 | E119: 江苏
A120: JS016 | B120: 诚品书店(苏州工业园区)有限公司 | C120: 二渠道 | D120: 全品 | E120: 江苏
A121: js001 | B121: 南京先锋书店 | C121: 二渠道 | D121: 全品 | E121: 江苏
A122: js004 | B122: 大众 | C122: 二渠道 | D122: 全品 | E122: 江苏
A123: JS009 | B123: 江苏华茂图书文化经营部 | C123: 二渠道 | D123: 全品 | E123: 江苏
A124: js003 | B124: 南京尚文图书文化有限责任公司 | C124: 二渠道 | D124: 全品 | E124: 江苏
A125: JS015 | B125: 南京新经典 | C125: 二渠道 | D125: 全品 | E125: 江苏
A127: AH002 | B127: 安徽新华图书音像连锁有限公司 | C127: 主渠道 | D127: 全品 | E127: 安徽 | F127: 沙漠
A128: AH003 | B128: 合肥科华教育书店 | C128: 二渠道 | D128: 重点品 | E128: 安徽 | F128: 沙漠
A129: JX001 | B129: 江西省新华书店图书音像批销中心 | C129: 主渠道 | D129: 全品 | E129: 江西 | F129: 沙漠
A130: JX003 | B130: 江西省南昌市青苑书店 | C130: 二渠道 | D130: 全品 | E130: 江西 | F130: 沙漠
A131: J00002 | B131: 南昌市佳丰书社 | C131: 二渠道 | D131: 重点品 | E131: 江西 | F131: 沙漠
A132: SD008 | B132: 山东新华书店集团有限公司图书批销中心 | C132: 主渠道 | D132: 全品 | E132: 山东 | F132: 沙漠
A133: SD006 | B133: 青岛市新华书店 | C133: 主渠道 | D133: 全品 | E133: 山东 | F133: 沙漠
A134: SD001 | B134: 济南市新华书店 | C134: 主渠道 | D134: 全品 | E134: 山东 | F134: 沙漠
A135: SD011 | B135: 济南联合书社 | C135: 二渠道 | D135: 重点品 | E135: 山东 | F135: 沙漠
A136: E00010 | B136: 豫浙合作图书部 | C136: 主渠道 | D136: 全品 | E136: 河南 | F136: 沙漠
A137: E00002 | B137: 河南省郑州市新华书店有限公司 | C137: 主渠道 | D137: 全品 | E137: 河南 | F137: 沙漠
A138: E00009 | B138: 河南省图苑实业发展有限责任公司 | C138: 二渠道 | D138: 重点品 | E138: 河南 | F138: 沙漠
A139: E00012 | B139: 郑州翰林图书有限公司 | C139: 二渠道 | D139: 全品 | E139: 河南 | F139: 沙漠
A140: E00011 | B140: 河南至诚经典图书有限公司 | C140: 二渠道 | D140: 全品 | E140: 河南 | F140: 沙漠
A141: F00001 | B141: 湖北省新华书店(集团）有限公司 | C141: 主道批发 | D141: 全品 | E141: 湖北 | F141: 沙漠
A142: F00002 | B142: 武汉新华书店股份有限公司 | C142: 主道零售 | D142: 全品 | E142: 湖北 | F142: 沙漠
A143: F00003 | B143: 湖北长江文化广场有限公司 | C143: 主道零售 | D143: 全品 | E143: 湖北 | F143: 沙漠
A144: F00006 | B144: 湖北至诚经典发行有限公司 | C144: 二道批发 | D144: 全品 | E144: 湖北 | F144: 沙漠
A145: F00013 | B145: 武汉鲜橙文化有限责任公司 | C145: 二道批发 | D145: 全品 | E145: 湖北 | F145: 沙漠
A146: un0001 | B146: 湖南省新华书店有限责任公司 | C146: 主道批发 | D146: 全品 | E146: 湖南 | F146: 沙漠
A147: un0002 | B147: 湖南诚品文化发展有限公司 | C147: 二道批发 | D147: 全品 | E147: 湖南 | F147: 沙漠
A148: un0005 | B148: 长沙连胜书社 | C148: 二道批发 | D148: 重点品 | E148: 湖南 | F148: 沙漠
A149: un0008 | B149: 湖南叶洋文化传播有限公司 | C149: 二道批发 | D149: 文学 | E149: 湖南 | F149: 沙漠
A150: un0010 | B150: 长沙麓之风图书有限责任公司 | C150: 二道批发 | D150: 社科 | E150: 湖南 | F150: 沙漠
A151: un0004 | B151: 湖南弘道文化传播有限公司 | C151: 馆配 | D151: 全品 | E151: 湖南 | F151: 沙漠
F152: 合计

Sheet 征订信息
A1: 征订日期 | B1: 重点书征订目标/备注 | C1: 预计 入库时间 | D1: 图书 级别 | E1: 书号 | F1: 图书名称 | G1: 定价 | H1: 作者 | I1: CIP | J1: 产品线 大类 | K1: 产品线 小类 | L1: 主题词 | M1: 首印量 | N1: 装帧 | O1: 包册数 | P1: 供货折扣 | Q1: 编辑部
A2: 6.28 | C2: 7.7 | E2: 978-7-5133-4485-2 | F2: BEAMS AT HOME 4 理想之家 | G2: 158.00 | H2: [日] BEAMS 著；郑晓蕾 译 | I2: D731.383-49 | J2: 生活 | K2: 家居 | L2: 生活方式－日本－通俗读物 | M2: 8000 | N2: 平装 | O2: 10 | P2: 60 | Q2: 生活风尚
A3: 6.28 | C3: 7.6 | E3: 978-7-5133-4564-4 | F3: 关键句是死亡 | G3: 55.00 | H3: [英] 安东尼·霍洛维茨 著 王淑芹 译 | I3: I561.45 | J3: 文学 | K3: 侦探文学 | L3: 长篇小说－英国－现代 | M3: 12000 | N3: 平装 | O3: 10 | P3: 60 | Q3: 午夜文库
A4: 6.28 | C4: 7.2 | E4: 978-7-5133-4407-4 | F4: 受限福尔摩斯机 | G4: 45.00 | H4: 梅絮 | I4: I247.5 | J4: 文学 | K4: 推理小说 | L4: 侦探小说－中国－当代 | M4: 7000 | N4: 平装 | O4: 10 | P4: 60 | Q4: 午夜文库
A5: 6.28 | C5: 7.2 | E5: 978-7-5133-4563-7 | F5: 苏州园林谋杀简史 | G5: 48.00 | H5: 慢三 | I5: I247.5 | J5: 文学 | K5: 推理小说 | L5: 长篇小说－中国－当代 | M5: 8000 | N5: 平装 | O5: 10 | P5: 60 | Q5: 午夜文库
A6: 6.28 | C6: 7.6 | E6: 978-7-5133-4520-0 | F6: 烟台传：半岛的此在与彼在 | G6: 89.00 | H6: 王月鹏 | I6: K295.23 | J6: 历史 | K6: 传记 | L6: 文化史－研究－烟台 | M6: 3000 | N6: 精装 | O6: 10 | P6: 60 | Q6: 重大项目办
A7: 6.28 | C7: 7.1 | E7: 978-7-5133-4531-6 | F7: 秦始皇传 | G7: 49.00 | H7: 黄中业 | I7: K827-33 | J7: 历史 | K7: 传记 | L7: 秦始皇（前259-前 210）－传记 | M7: 5000 | N7: 平装 | O7: 10 | P7: 60 | Q7: 综合编室

Sheet 征订目标分解
A1: 新书征订
A2: 书名 | C2: BEAMS AT HOME 4 理想之家 | D2: 关键句是死亡 | E2: 受限福尔摩斯机 | F2: 苏州园林谋杀简史 | G2: 烟台传：半岛的此在与彼在 | H2: 秦始皇传
A3: 首印数 | C3: 8000 | D3: 12000 | E3: 7000 | F3: 8000 | G3: 3000 | H3: 5000
A4: 库存 | C4: =C3*20% -> 1600 | D4: 2400 | E4: 1400 | F4: 1600 | G4: 600 | H4: 1000
A5: 首发数量 | C5: =C3-C4 -> 6400 | D5: 9600 | E5: 5600 | F5: 6400 | G5: 2400 | H5: 4000
A6: 业务经理 | B6: 渠道分解比例
A7: 丁月 | B7: 0.14 | C7: =C5*B7 -> 896 | D7: =D5*B7 -> 1344 | E7: =B7*E5 -> 784 | F7: =F5*B7 -> 896 | G7: =G5*B7 -> 336 | H7: =H5*B7 -> 560
A8: 张珊珊 | B8: 0.15 | C8: =C5*B8 -> 960 | D8: =D5*B8 -> 1440 | E8: =B8*E5 -> 840 | F8: =F5*B8 -> 960 | G8: =G5*B8 -> 360 | H8: =H5*B8 -> 600
A9: 王秀 | B9: 0.12 | C9: =B9*C5 -> 768 | D9: =D5*B9 -> 1152 | E9: =B9*E5 -> 672 | F9: =F5*B9 -> 768 | G9: =G5*B9 -> 288 | H9: =H5*B9 -> 480
A10: 马威 | B10: 0.12 | C10: =B10*C5 -> 768 | D10: =D5*B10 -> 1152 | E10: =B10*E5 -> 672 | F10: =F5*B10 -> 768 | G10: =G5*B10 -> 288 | H10: =H5*B10 -> 480
A11: 付雷 | B11: 0.10 | C11: =C5*B11 -> 640 | D11: =D5*B11 -> 960 | E11: =B11*E5 -> 560 | F11: =F5*B11 -> 640 | G11: =G5*B11 -> 240 | H11: =H5*B11 -> 400
A12: 侯爽 | B12: 0.10 | C12: =B12*C5 -> 640 | D12: =D5*B12 -> 960 | E12: =B12*E5 -> 560 | F12: =F5*B12 -> 640 | G12: =G5*B12 -> 240 | H12: =H5*B12 -> 400
A13: 江苏 | B13: 0.08 | C13: =C5*B13 -> 512 | D13: =D5*B13 -> 768 | E13: =B13*E5 -> 448 | F13: =F5*B13 -> 512 | G13: =G5*B13 -> 192 | H13: =H5*B13 -> 320
A14: 沙漠 | B14: 0.08 | C14: =B14*C5 -> 512 | D14: =B14*D5 -> 768 | E14: =B14*E5 -> 448 | F14: =B14*F5 -> 512 | G14: =G5*B14 -> 192 | H14: =H5*B14 -> 320
A15: 天猫 | B15: 0.05 | C15: =C5*B15 -> 320 | D15: =D5*B15 -> 480 | E15: =B15*E5 -> 280 | F15: =F5*B15 -> 320 | G15: =G5*B15 -> 120 | H15: =H5*B15 -> 200
A16: 王琪 | B16: 0.05 | C16: =B16*C5 -> 320 | D16: =B16*D5 -> 480 | E16: =B16*E5 -> 280 | F16: =B16*F5 -> 320 | G16: =G5*B16 -> 120 | H16: =H5*B16 -> 200
